[Event "GER-ch Youth U12W 2020"]
[Site "Willingen"]
[Date "2020.10.30"]
[Round "5.1"]
[White "Trunz, Michelle"]
[Black "Bräutigam, Katerina"]
[Result "1-0"]
[ECO "D31"]
[WhiteElo "1662"]
[BlackElo "1744"]
[Annotator "NA RC"]
[PlyCount "145"]
[EventDate "2020.10.27"]
[EventType "swiss"]
[EventRounds "7"]
[EventCountry "GER"]
[SourceTitle "playchess.com"]
[Source "ChessBase"]
[SourceQuality "1"]
[TimeControl "40/5400+30:1800+30"]

1. d4 {[%emt 0:00:00]} d5 {[%emt 0:00:00]} 2. c4 {[%emt 0:00:00]} e6 {[%emt 0:00:00]} 3. Nc3 {[%emt 0:00:08]} a6 {[%emt 0:00:00]} 4. a4 {[%emt 0:05:46]} Nc6 {[%emt 0:01:34]} 5. e3 {[%emt 0:02:15]} Nf6 {[%emt 0:01:22]} 6. Nf3 {[%emt 0:01:22]} Be7 {[%emt 0:01:38]} 7. Be2 {[%emt 0:00:46]} O-O {[%emt 0:01:01]} 8. O-O {[%emt 0:00:06]} Re8 {[%emt 0:02:44]} 9. b3 {[%emt 0:02:47]} h6 {[%emt 0:08:56]} 10. Ba3 {[%emt 0:00:51]} Kh8 {[%emt 0:00:45]} 11. Bxe7 {[%emt 0:00:25]} Qxe7 {[%emt 0:01:35]} 12. Qc2 {[%emt 0:03:35]} Rg8 {[%emt 0:01:12]} 13. Kh1 {[%emt 0:07:45]} g5 {[%emt 0:02:03]} 14. Rfb1 {[%emt 0:04:13]} Bd7 {[%emt 0:03:15]} 15. c5 {[%emt 0:02:31]} Nb4 {[%emt 0:05:04]} 16. Qd2 {[%emt 0:05:02]} a5 {[%emt 0:02:32]} 17. Ne5 {[%emt 0:01:34]} g4 {[%emt 0:05:01]} 18. e4 {[%emt 0:04:34]} Qf8 {[%emt 0:11:44]} 19. exd5 {[%emt 0:06:29]} exd5 {[%emt 0:09:26]} 20. Qf4 {[%emt 0:05:11]} Qg7 {[%emt 0:25:13]} 21. Rg1 {[%emt 0:16:48]} Be6 {[%emt 0:10:56]} 22. Rac1 {[%emt 0:12:10]} c6 {[%emt 0:01:59]} 23. Qe3 {[%emt 0:02:36]} Bf5 {[%emt 0:00:32]} 24. f3 {[%emt 0:01:01]} Rae8 {[%emt 0:01:07]} 25. Qf4 {[%emt 0:01:18]} Bc8 {[%emt 0:02:05]} 26. fxg4 {[%emt 0:00:37]} h5 {[%emt 0:00:42]} 27. g5 {[%emt 0:00:31]} Ng4 {[%emt 0:00:32]} 28. Bxg4 {[%emt 0:02:18]} Bxg4 29. h3 {[%emt 0:01:07]} Be6 {[%emt 0:00:57]} 30. h4 {[%emt 0:01:03]} Ref8 {[%emt 0:00:19]} 31. Qf3 {[%emt 0:01:08]} Qh7 {[%emt 0:00:30]} 32. Qf6+ {[%emt 0:01:01]} Rg7 {[%emt 0:00:12]} 33. g6 {[%emt 0:00:18]} Qh6 {[%emt 0:00:57]} 34. Rgf1 {[%emt 0:01:13]} Na6 {[%emt 0:00:30]} 35. Qe7 {[%emt 0:02:39]} Kg8 {[%emt 0:00:34]} 36. gxf7+ {[%emt 0:00:28]} Bxf7 {[%emt 0:00:27]} 37. Nd7 {[%emt 0:00:20]} Rg6 {[%emt 0:00:33]} 38. Nxf8 {[%emt 0:00:36]} Qxf8 {[%emt 0:00:18]} 39. Qxf8+ {[%emt 0:00:46]} Kxf8 {[%emt 0:00:05]} 40. Rf2 {[%emt 0:00:14]} Ke7 {[%emt 0:00:43]} 41. Re1+ {[%emt 0:30:33]} Be6 {[%emt 0:30:09]} 42. Ne2 {[%emt 0:00:33]} Rg4 {[%emt 0:00:00]} 43. Rf4 {[%emt 0:00:00]} Rg7 {[%emt 0:00:00]} 44. Kh2 {[%emt 0:00:00]} Nb4 {[%emt 0:00:00]} 45. Rf3 {[%emt 0:00:00]} Kd7 {[%emt 0:00:00]} 46. Nf4 {[%emt 0:00:00]} Bg4 {[%emt 0:00:00]} 47. Rg3 {[%emt 0:00:00]} Rh7 {[%emt 0:00:00]} 48. Nd3 {[%emt 0:00:00]} Nxd3 {[%emt 0:00:00]} 49. Rxd3 {[%emt 0:00:00]} Bf5 {[%emt 0:00:00]} 50. Rf3 {[%emt 0:00:00]} Be4 {[%emt 0:00:00]} 51. Rf6 {[%emt 0:00:00]} Bc2 {[%emt 0:00:00]} 52. Re3 {[%emt 0:00:00]} Be4 {[%emt 0:00:00]} 53. Rg3 {[%emt 0:00:00]} Bc2 {[%emt 0:00:00]} 54. Rf8 {[%emt 0:00:00]} Re7 {[%emt 0:00:00]} 55. Rf4 {[%emt 0:00:00]} Kc7 {[%emt 0:00:00]} 56. Rc3 {[%emt 0:00:00]} Bd1 {[%emt 0:00:02]} 57. Rd3 {[%emt 0:00:00]} Bc2 {[%emt 0:00:28]} 58. Rdf3 {[%emt 0:00:00]} Bd1 {[%emt 0:01:12]} 59. Rf7 {[%emt 0:00:00]} Rxf7 {[%emt 0:02:15]} 60. Rxf7+ {[%emt 0:00:00]} Kb8 {[%emt 0:00:19]} 61. Rf3 {[%emt 0:00:51]} Bxf3 {[%emt 0:04:42]} 62. gxf3 {[%emt 0:00:06]} b6 {[%emt 0:00:33]} 63. cxb6 {[%emt 0:00:15]} Kb7 {[%emt 0:00:22]} 64. Kg3 {[%emt 0:00:23]} Kxb6 {[%emt 0:00:46]} 65. f4 {[%emt 0:01:12]} Kc7 {[%emt 0:02:02]} 66. f5 {[%emt 0:00:14]} Kd7 {[%emt 0:00:22]} 67. Kf4 {[%emt 0:00:09]} Kd6 {[%emt 0:00:43]} 68. Kg5 {[%emt 0:01:45]} c5 {[%emt 0:00:29]} 69. f6 {[%emt 0:02:54]} c4 {[%emt 0:00:28]} 70. Kg6 {[%emt 0:00:28]} cxb3 {[%emt 0:00:27]} 71. f7 {[%emt 0:00:25]} b2 {[%emt 0:00:18]} 72. f8=Q+ {[%emt 0:00:06]} Kc7 {[%emt 0:00:11]} 73. Qf1 {[%emt 0:00:13]} 1-0

[Event "GER-ch Youth U12W 2020"]
[Site "Willingen"]
[Date "2020.10.30"]
[Round "5.2"]
[White "Peglau, Charis"]
[Black "Wilmink, Anna"]
[Result "1/2-1/2"]
[ECO "E10"]
[WhiteElo "1768"]
[BlackElo "1608"]
[Annotator "NA RC"]
[PlyCount "56"]
[EventDate "2020.10.27"]
[EventType "swiss"]
[EventRounds "7"]
[EventCountry "GER"]
[SourceTitle "playchess.com"]
[Source "ChessBase"]
[SourceQuality "1"]
[TimeControl "40/5400+30:1800+30"]

1. d4 {[%emt 0:00:00]} Nf6 {[%emt 0:00:00]} 2. c4 {[%emt 0:00:00]} e6 {[%emt 0:00:00]} 3. Nf3 {[%emt 0:00:12]} d5 {[%emt 0:00:12]} 4. e3 {[%emt 0:00:40]} b6 {[%emt 0:00:39]} 5. Nc3 {[%emt 0:03:31]} Bb7 {[%emt 0:00:58]} 6. Bd2 {[%emt 0:05:32]} Nbd7 {[%emt 0:01:14]} 7. Rc1 {[%emt 0:02:22]} c5 {[%emt 0:01:11]} 8. cxd5 {[%emt 0:02:21]} exd5 {[%emt 0:00:43]} 9. Be2 {[%emt 0:03:52]} Be7 {[%emt 0:02:55]} 10. O-O {[%emt 0:02:42]} O-O {[%emt 0:01:02]} 11. Ne5 {[%emt 0:07:13]} Nxe5 {[%emt 0:04:25]} 12. dxe5 {[%emt 0:00:19]} Ne4 {[%emt 0:01:44]} 13. f3 {[%emt 0:04:31]} Nxd2 {[%emt 0:02:55]} 14. Qxd2 {[%emt 0:00:09]} d4 {[%emt 0:12:17]} 15. Na4 {[%emt 0:16:48]} Qd5 {[%emt 0:06:29]} 16. exd4 {[%emt 0:08:06]} cxd4 {[%emt 0:01:14]} 17. Bc4 {[%emt 0:07:20]} Qxe5 {[%emt 0:02:25]} 18. Bd3 {[%emt 0:05:59]} Qd6 {[%emt 0:05:30]} 19. b3 {[%emt 0:02:39]} Bd5 {[%emt 0:07:43]} 20. Nb2 {[%emt 0:02:26]} Rab8 {[%emt 0:05:04]} 21. Nc4 {[%emt 0:00:50]} Bxc4 {[%emt 0:00:55]} 22. Rxc4 {[%emt 0:00:47]} Bf6 {[%emt 0:03:24]} 23. Be4 {[%emt 0:00:35]} Rbc8 {[%emt 0:02:40]} 24. Rfc1 {[%emt 0:09:12]} Rc5 {[%emt 0:06:37]} 25. Rxc5 {[%emt 0:03:08]} bxc5 {[%emt 0:00:33]} 26. Qc2 {[%emt 0:00:31]} g6 {[%emt 0:05:18]} 27. Qxc5 {[%emt 0:01:40]} Qxc5 {[%emt 0:00:45]} 28. Rxc5 {[%emt 0:00:04]} Rd8 {[%emt 0:01:10]} 1/2-1/2

[Event "GER-ch Youth U12W 2020"]
[Site "Willingen"]
[Date "2020.10.30"]
[Round "5.3"]
[White "Fischer, Juliane"]
[Black "Moldovan, Stela"]
[Result "1-0"]
[ECO "B28"]
[WhiteElo "1509"]
[BlackElo "1219"]
[Annotator "NA RC"]
[PlyCount "115"]
[EventDate "2020.10.27"]
[EventType "swiss"]
[EventRounds "7"]
[EventCountry "GER"]
[SourceTitle "playchess.com"]
[Source "ChessBase"]
[SourceQuality "1"]
[TimeControl "40/5400+30:1800+30"]

1. e4 c5 2. Nf3 a6 3. c3 e6 4. d4 {[%emt 0:00:23]} d5 {[%emt 0:01:44]} 5. e5 {[%emt 0:04:28]} Bd7 {[%emt 0:00:19]} 6. Bd3 {[%emt 0:00:58]} cxd4 {[%emt 0:00:17]} 7. cxd4 {[%emt 0:00:32]} Bb5 {[%emt 0:00:28]} 8. Bxb5+ {[%emt 0:07:50]} axb5 {[%emt 0:01:36]} 9. O-O {[%emt 0:00:25]} Nc6 {[%emt 0:00:36]} 10. Nc3 {[%emt 0:05:31]} b4 {[%emt 0:00:28]} 11. Ne2 {[%emt 0:00:24]} h6 {[%emt 0:00:15]} 12. Bd2 {[%emt 0:00:43]} Nge7 {[%emt 0:00:14]} 13. Ng3 {[%emt 0:00:44]} Nf5 {[%emt 0:01:58]} 14. Nxf5 {[%emt 0:01:09]} exf5 {[%emt 0:00:09]} 15. Qc2 {[%emt 0:01:18]} Qd7 {[%emt 0:00:32]} 16. Rfe1 {[%emt 0:00:15]} Rc8 {[%emt 0:00:26]} 17. e6 {[%emt 0:01:20]} fxe6 {[%emt 0:00:19]} 18. Qxf5 {[%emt 0:00:12]} Nd8 {[%emt 0:00:38]} 19. Re2 {[%emt 0:08:45]} Qf7 {[%emt 0:00:52]} 20. Qxd5 {[%emt 0:00:30]} Be7 {[%emt 0:01:33]} 21. Qb5+ {[%emt 0:01:01]} Nc6 {[%emt 0:00:08]} 22. Ne5 {[%emt 0:02:38]} Qf6 {[%emt 0:00:27]} 23. Qxb7 {[%emt 0:01:27]} O-O {[%emt 0:01:24]} 24. Nxc6 {[%emt 0:00:42]} Bd6 {[%emt 0:00:24]} 25. Ne5 {[%emt 0:00:40]} Bxe5 {[%emt 0:00:16]} 26. dxe5 {[%emt 0:00:21]} Qf5 {[%emt 0:00:42]} 27. Bxb4 {[%emt 0:02:01]} Rfd8 {[%emt 0:02:59]} 28. Qe4 {[%emt 0:01:18]} Qg5 {[%emt 0:00:19]} 29. f4 {[%emt 0:04:11]} Qh5 {[%emt 0:00:35]} 30. Rd2 {[%emt 0:01:56]} Re8 {[%emt 0:00:37]} 31. Rad1 {[%emt 0:00:50]} Qh4 {[%emt 0:03:36]} 32. g3 {[%emt 0:01:37]} Rb8 {[%emt 0:00:31]} 33. gxh4 {[%emt 0:00:11]} Ra8 {[%emt 0:01:53]} 34. Qxa8 {[%emt 0:00:22]} Rxa8 {[%emt 0:00:10]} 35. Rd8+ {[%emt 0:00:03]} Rxd8 {[%emt 0:00:06]} 36. Rxd8+ {[%emt 0:00:07]} Kf7 {[%emt 0:00:04]} 37. Rd2 {[%emt 0:00:35]} g6 {[%emt 0:00:07]} 38. Kf2 {[%emt 0:00:10]} g5 {[%emt 0:00:10]} 39. hxg5 {[%emt 0:00:08]} hxg5 {[%emt 0:00:07]} 40. fxg5 {[%emt 0:00:09]} Kg6 {[%emt 0:00:05]} 41. Rd6 {[%emt 0:30:28]} Kxg5 {[%emt 0:30:09]} 42. Rxe6 {[%emt 0:00:09]} Kf5 {[%emt 0:00:04]} 43. Rc6 {[%emt 0:00:07]} Kxe5 {[%emt 0:00:06]} 44. Rc4 {[%emt 0:00:15]} Kd5 {[%emt 0:00:05]} 45. b3 {[%emt 0:00:10]} Ke6 {[%emt 0:00:07]} 46. Rc5 {[%emt 0:00:06]} Kd6 {[%emt 0:00:06]} 47. Ke3 {[%emt 0:00:09]} Ke6 {[%emt 0:00:06]} 48. Ke4 {[%emt 0:00:22]} Kf6 {[%emt 0:00:05]} 49. Ra5 {[%emt 0:00:11]} Kg6 {[%emt 0:00:08]} 50. Kf4 {[%emt 0:00:09]} Kf6 {[%emt 0:00:08]} 51. Ra6+ {[%emt 0:00:05]} Kf7 {[%emt 0:00:12]} 52. Kg5 {[%emt 0:00:10]} Ke8 {[%emt 0:00:05]} 53. Ra7 {[%emt 0:00:07]} Kd8 {[%emt 0:00:02]} 54. Kf6 {[%emt 0:00:06]} Kc8 {[%emt 0:00:03]} 55. Bd6 {[%emt 0:00:42]} Kd8 {[%emt 0:00:15]} 56. Ke6 {[%emt 0:00:22]} Kc8 {[%emt 0:00:05]} 57. Rh7 {[%emt 0:00:10]} Kd8 {[%emt 0:00:11]} 58. Rh8# 1-0

[Event "GER-ch Youth U12W 2020"]
[Site "Willingen"]
[Date "2020.10.30"]
[Round "5.4"]
[White "Haug, Mara"]
[Black "Wartenberg, Alissa"]
[Result "0-1"]
[ECO "A28"]
[WhiteElo "1366"]
[BlackElo "1463"]
[Annotator "NA RC"]
[PlyCount "60"]
[EventDate "2020.10.27"]
[EventType "swiss"]
[EventRounds "7"]
[EventCountry "GER"]
[SourceTitle "playchess.com"]
[Source "ChessBase"]
[SourceQuality "1"]
[TimeControl "40/5400+30:1800+30"]

1. c4 {[%emt 0:00:00]} e5 {[%emt 0:00:00]} 2. Nc3 {[%emt 0:00:00]} Nf6 {[%emt 0:00:00]} 3. Nf3 {[%emt 0:00:07]} Nc6 {[%emt 0:00:00]} 4. e3 {[%emt 0:00:08]} d5 {[%emt 0:00:18]} 5. cxd5 {[%emt 0:00:09]} Nxd5 {[%emt 0:00:04]} 6. Bb5 {[%emt 0:00:18]} Nxc3 {[%emt 0:01:48]} 7. bxc3 {[%emt 0:00:08]} Bd6 {[%emt 0:01:58]} 8. d4 {[%emt 0:01:27]} exd4 {[%emt 0:06:33]} 9. cxd4 {[%emt 0:01:30]} O-O {[%emt 0:01:21]} 10. Qc2 {[%emt 0:05:45]} Nb4 {[%emt 0:04:35]} 11. Qb1 {[%emt 0:07:57]} c6 {[%emt 0:01:12]} 12. Be2 {[%emt 0:03:42]} Qa5 {[%emt 0:04:11]} 13. Bd2 {[%emt 0:01:52]} Qa4 {[%emt 0:01:43]} 14. Bd1 {[%emt 0:10:39]} Qb5 {[%emt 0:18:15]} 15. Be2 {[%emt 0:05:42]} Qa4 {[%emt 0:02:59]} 16. Bd1 {[%emt 0:07:56]} Qa3 {[%emt 0:03:38]} 17. O-O {[%emt 0:01:56]} b6 {[%emt 0:10:40]} 18. Bb3 {[%emt 0:04:29]} Ba6 {[%emt 0:12:46]} 19. Re1 {[%emt 0:05:43]} c5 {[%emt 0:09:19]} 20. Ng5 {[%emt 0:07:28]} Bd3 {[%emt 0:01:26]} 21. Qd1 {[%emt 0:03:51]} c4 {[%emt 0:01:56]} 22. Ba4 {[%emt 0:09:07]} b5 {[%emt 0:01:22]} 23. Bxb4 {[%emt 0:10:03]} Bxb4 {[%emt 0:00:39]} 24. Bxb5 {[%emt 0:00:47]} Bxe1 {[%emt 0:00:44]} 25. Qxe1 {[%emt 0:00:45]} Qd6 {[%emt 0:01:30]} 26. h4 {[%emt 0:06:04]} h6 {[%emt 0:01:09]} 27. Nf3 {[%emt 0:01:08]} Rab8 {[%emt 0:00:48]} 28. Ba4 {[%emt 0:01:07]} Be4 {[%emt 0:01:42]} 29. Ne5 {[%emt 0:01:34]} Rfc8 {[%emt 0:01:20]} 30. Qe2 {[%emt 0:01:35]} c3 {[%emt 0:00:58]} 0-1

[Event "GER-ch Youth U12W 2020"]
[Site "Willingen"]
[Date "2020.10.30"]
[Round "5.5"]
[White "Arnold, Rubina"]
[Black "Jacobasch, Ronja"]
[Result "1-0"]
[ECO "B09"]
[WhiteElo "1414"]
[BlackElo "1549"]
[Annotator "NA RC"]
[PlyCount "69"]
[EventDate "2020.10.27"]
[EventType "swiss"]
[EventRounds "7"]
[EventCountry "GER"]
[SourceTitle "playchess.com"]
[Source "ChessBase"]
[SourceQuality "1"]
[TimeControl "40/5400+30:1800+30"]

1. e4 {[%emt 0:00:00]} d6 {[%emt 0:00:00]} 2. d4 {[%emt 0:00:00]} Nf6 {[%emt 0:00:00]} 3. Nc3 {[%emt 0:00:00]} g6 {[%emt 0:00:00]} 4. f4 {[%emt 0:00:00]} Bg7 {[%emt 0:00:31]} 5. Nf3 {[%emt 0:01:05]} Nbd7 {[%emt 0:00:26]} 6. e5 {[%emt 0:02:36]} dxe5 {[%emt 0:00:46]} 7. dxe5 {[%emt 0:00:40]} Ng4 {[%emt 0:02:42]} 8. Bc4 {[%emt 0:05:24]} e6 {[%emt 0:03:57]} 9. h3 {[%emt 0:02:49]} Nh6 {[%emt 0:00:33]} 10. Be3 {[%emt 0:01:43]} Nf5 {[%emt 0:02:38]} 11. Bf2 {[%emt 0:02:29]} O-O {[%emt 0:01:10]} 12. g4 {[%emt 0:04:01]} Ne7 {[%emt 0:05:40]} 13. Qd2 {[%emt 0:05:27]} Nb6 {[%emt 0:01:26]} 14. Bd3 {[%emt 0:02:52]} Ned5 {[%emt 0:02:34]} 15. g5 {[%emt 0:05:11]} Nxc3 {[%emt 0:12:19]} 16. Qxc3 {[%emt 0:00:41]} Nd5 {[%emt 0:00:23]} 17. Qd2 {[%emt 0:00:08]} b6 {[%emt 0:01:49]} 18. Be4 {[%emt 0:01:53]} Bb7 {[%emt 0:01:01]} 19. c4 {[%emt 0:00:46]} Rb8 {[%emt 0:17:43]} 20. cxd5 {[%emt 0:00:33]} exd5 {[%emt 0:00:08]} 21. Bc2 {[%emt 0:00:38]} d4 {[%emt 0:01:17]} 22. Qe2 {[%emt 0:02:29]} Qd5 {[%emt 0:01:12]} 23. Rh2 {[%emt 0:04:55]} Qxf3 {[%emt 0:00:53]} 24. Qxf3 {[%emt 0:00:32]} Bxf3 {[%emt 0:00:08]} 25. Bxd4 {[%emt 0:00:25]} Rfe8 {[%emt 0:01:45]} 26. Rd2 {[%emt 0:06:57]} Bf8 {[%emt 0:05:35]} 27. Kf2 {[%emt 0:02:58]} Bb7 {[%emt 0:00:55]} 28. Bb3 {[%emt 0:04:58]} Rbd8 {[%emt 0:02:41]} 29. Rad1 {[%emt 0:01:58]} Be7 {[%emt 0:12:57]} 30. Bc3 {[%emt 0:00:57]} Rxd2+ {[%emt 0:01:44]} 31. Rxd2 {[%emt 0:03:11]} Bc5+ {[%emt 0:00:25]} 32. Kg3 {[%emt 0:01:22]} Re7 {[%emt 0:02:01]} 33. Rd8+ {[%emt 0:00:16]} Re8 {[%emt 0:03:28]} 34. Rxe8+ {[%emt 0:00:10]} Bf8 {[%emt 0:00:08]} 35. e6 1-0

[Event "GER-ch Youth U12W 2020"]
[Site "Willingen"]
[Date "2020.10.30"]
[Round "5.6"]
[White "Peglau, Dora"]
[Black "Lorenz, Veronika"]
[Result "0-1"]
[ECO "D30"]
[WhiteElo "1683"]
[BlackElo "1273"]
[Annotator "NA RC"]
[PlyCount "108"]
[EventDate "2020.10.27"]
[EventType "swiss"]
[EventRounds "7"]
[EventCountry "GER"]
[SourceTitle "playchess.com"]
[Source "ChessBase"]
[SourceQuality "1"]
[TimeControl "40/5400+30:1800+30"]

1. d4 {[%emt 0:00:00]} d5 {[%emt 0:00:00]} 2. c4 {[%emt 0:00:00]} e6 {[%emt 0:00:00]} 3. Nf3 {[%emt 0:00:00]} c5 {[%emt 0:00:00]} 4. cxd5 {[%emt 0:00:03]} exd5 {[%emt 0:00:06]} 5. Bg5 {[%emt 0:00:17]} Be7 {[%emt 0:01:19]} 6. Bxe7 {[%emt 0:00:06]} Qxe7 {[%emt 0:04:34]} 7. dxc5 {[%emt 0:02:06]} Qxc5 {[%emt 0:00:21]} 8. Nc3 {[%emt 0:00:54]} Nf6 {[%emt 0:00:30]} 9. Rc1 {[%emt 0:00:41]} Nc6 {[%emt 0:01:22]} 10. e3 {[%emt 0:02:29]} O-O {[%emt 0:01:44]} 11. Be2 {[%emt 0:02:15]} Qb6 {[%emt 0:07:16]} 12. b3 {[%emt 0:11:59]} Be6 {[%emt 0:04:28]} 13. O-O {[%emt 0:03:30]} Rfd8 {[%emt 0:03:52]} 14. Na4 {[%emt 0:05:41]} Qb4 {[%emt 0:11:57]} 15. Nc5 {[%emt 0:02:51]} Ne4 {[%emt 0:07:33]} 16. Nxe6 {[%emt 0:08:55]} fxe6 {[%emt 0:00:21]} 17. Bd3 {[%emt 0:09:07]} Rac8 {[%emt 0:06:46]} 18. Qe2 {[%emt 0:01:16]} e5 {[%emt 0:13:27]} 19. Qb2 {[%emt 0:06:52]} Re8 {[%emt 0:09:05]} 20. a3 {[%emt 0:01:53]} Qf8 {[%emt 0:06:18]} 21. Bxe4 {[%emt 0:01:33]} dxe4 {[%emt 0:00:08]} 22. Nd2 {[%emt 0:00:31]} Qf5 {[%emt 0:00:36]} 23. Rc4 {[%emt 0:01:37]} Red8 {[%emt 0:05:08]} 24. Nxe4 {[%emt 0:02:22]} b5 {[%emt 0:03:08]} 25. Ng3 {[%emt 0:00:29]} Qd3 {[%emt 0:00:21]} 26. Rc3 {[%emt 0:00:39]} Qg6 {[%emt 0:00:27]} 27. Rfc1 {[%emt 0:00:37]} Rd6 {[%emt 0:01:03]} 28. Rc5 {[%emt 0:03:40]} Rcd8 {[%emt 0:01:19]} 29. Qe2 {[%emt 0:01:38]} a6 {[%emt 0:00:33]} 30. b4 {[%emt 0:04:44]} Qe8 {[%emt 0:04:42]} 31. Ne4 {[%emt 0:03:35]} Re6 {[%emt 0:00:17]} 32. Qa2 {[%emt 0:01:12]} Kh8 {[%emt 0:00:36]} 33. Ng5 {[%emt 0:00:30]} Rf6 {[%emt 0:00:10]} 34. Qc2 {[%emt 0:08:31]} g6 {[%emt 0:02:46]} 35. h4 {[%emt 0:05:25]} Nb8 {[%emt 0:01:49]} 36. Rc7 {[%emt 0:01:07]} Nd7 {[%emt 0:00:23]} 37. Rc6 {[%emt 0:05:30]} Qe7 {[%emt 0:01:07]} 38. Qb3 {[%emt 0:00:53]} Rdf8 {[%emt 0:00:45]} 39. Rxf6 {[%emt 0:02:00]} Qxf6 {[%emt 0:00:30]} 40. f3 {[%emt 0:01:25]} Nb6 {[%emt 0:02:38]} 41. Rc7 {[%emt 0:30:44]} Nc4 {[%emt 0:02:01]} 42. Nxh7 {[%emt 0:00:00]} Qxh4 {[%emt 0:03:07]} 43. Qd1 {[%emt 0:00:00]} Rd8 {[%emt 0:07:35]} 44. Qc1 {[%emt 0:00:00]} Nxe3 {[%emt 0:01:34]} 45. Rc8 {[%emt 0:00:00]} Rxc8 {[%emt 0:01:20]} 46. Qxc8+ {[%emt 0:00:00]} Kxh7 {[%emt 0:00:13]} 47. Qxa6 {[%emt 0:00:00]} Qe1+ {[%emt 0:05:27]} 48. Kh2 {[%emt 0:00:00]} Qf2 {[%emt 0:01:13]} 49. Qb7+ {[%emt 0:00:00]} Kh6 {[%emt 0:00:09]} 50. f4 {[%emt 0:00:00]} Qxf4+ {[%emt 0:02:21]} 51. Kg1 {[%emt 0:00:00]} Qf1+ {[%emt 0:00:18]} 52. Kh2 {[%emt 0:00:00]} Ng4+ {[%emt 0:00:52]} 53. Kg3 {[%emt 0:00:00]} Qf4+ {[%emt 0:00:12]} 54. Kh3 {[%emt 0:00:00]} Nf2# {[%emt 0:02:37]} 0-1

[Event "GER-ch Youth U12W 2020"]
[Site "Willingen"]
[Date "2020.10.30"]
[Round "5.7"]
[White "Schwenke, Mia"]
[Black "Bangiev, Katharina"]
[Result "1/2-1/2"]
[ECO "B34"]
[WhiteElo "1265"]
[BlackElo "1539"]
[Annotator "NA RC"]
[PlyCount "72"]
[EventDate "2020.10.27"]
[EventType "swiss"]
[EventRounds "7"]
[EventCountry "GER"]
[SourceTitle "playchess.com"]
[Source "ChessBase"]
[SourceQuality "1"]
[TimeControl "40/5400+30:1800+30"]

1. e4 {[%emt 0:00:00]} c5 {[%emt 0:00:00]} 2. Nf3 {[%emt 0:00:00]} Nc6 {[%emt 0:00:00]} 3. d4 {[%emt 0:00:00]} cxd4 {[%emt 0:00:00]} 4. Nxd4 {[%emt 0:00:01]} g6 {[%emt 0:00:01]} 5. Nc3 {[%emt 0:00:13]} Bg7 {[%emt 0:00:05]} 6. Be3 {[%emt 0:00:16]} Nf6 {[%emt 0:00:09]} 7. f3 {[%emt 0:00:13]} O-O {[%emt 0:00:08]} 8. Bc4 {[%emt 0:00:11]} Qb6 {[%emt 0:00:39]} 9. Bb3 {[%emt 0:01:22]} Nxe4 {[%emt 0:02:12]} 10. Nxe4 {[%emt 0:13:56]} Nxd4 {[%emt 0:00:26]} 11. Qd3 {[%emt 0:07:26]} Qa5+ {[%emt 0:05:57]} 12. Bd2 {[%emt 0:06:17]} Qd8 {[%emt 0:00:39]} 13. Bc3 {[%emt 0:01:48]} Nxb3 {[%emt 0:01:37]} 14. axb3 {[%emt 0:00:27]} d5 {[%emt 0:01:38]} 15. Ng3 {[%emt 0:03:06]} e5 {[%emt 0:03:46]} 16. O-O-O {[%emt 0:07:29]} d4 {[%emt 0:03:08]} 17. Bd2 {[%emt 0:00:39]} Be6 {[%emt 0:03:52]} 18. Ne4 {[%emt 0:06:57]} Rc8 {[%emt 0:05:55]} 19. Bb4 {[%emt 0:04:21]} f5 {[%emt 0:16:17]} 20. Nd6 {[%emt 0:09:29]} Rb8 {[%emt 0:04:44]} 21. Rhe1 {[%emt 0:05:42]} Qg5+ {[%emt 0:06:14]} 22. Rd2 {[%emt 0:02:25]} Bh6 {[%emt 0:02:07]} 23. Kb1 {[%emt 0:02:29]} Qd8 {[%emt 0:01:56]} 24. Rdd1 {[%emt 0:02:11]} Bg7 {[%emt 0:04:58]} 25. Nc4 {[%emt 0:01:00]} Bxc4 {[%emt 0:00:54]} 26. Qxc4+ {[%emt 0:00:30]} Rf7 {[%emt 0:00:09]} 27. Re2 {[%emt 0:06:37]} Rc8 {[%emt 0:02:21]} 28. Qd3 {[%emt 0:00:23]} Qb6 {[%emt 0:03:53]} 29. Be1 {[%emt 0:02:17]} Re7 {[%emt 0:07:14]} 30. Bh4 {[%emt 0:01:21]} Re6 {[%emt 0:01:11]} 31. Bg3 {[%emt 0:00:55]} Kh8 {[%emt 0:03:50]} 32. Rde1 {[%emt 0:00:47]} Rce8 {[%emt 0:00:36]} 33. Bf2 {[%emt 0:03:05]} Qc6 {[%emt 0:07:29]} 34. Qd2 {[%emt 0:03:11]} Qd6 {[%emt 0:03:28]} 35. Rd1 {[%emt 0:01:10]} Qc6 {[%emt 0:03:53]} 36. Rde1 {[%emt 0:00:46]} a6 {[%emt 0:01:58]} 1/2-1/2

[Event "GER-ch Youth U12W 2020"]
[Site "Willingen"]
[Date "2020.10.30"]
[Round "5.8"]
[White "Hergenröder, Cora"]
[Black "Bakó, Evelin"]
[Result "1-0"]
[ECO "D30"]
[WhiteElo "1422"]
[BlackElo "1192"]
[Annotator "NA RC"]
[PlyCount "51"]
[EventDate "2020.10.27"]
[EventType "swiss"]
[EventRounds "7"]
[EventCountry "GER"]
[SourceTitle "playchess.com"]
[Source "ChessBase"]
[SourceQuality "1"]
[TimeControl "40/5400+30:1800+30"]

1. d4 {[%emt 0:00:00]} d5 {[%emt 0:00:00]} 2. c4 {[%emt 0:00:00]} e6 {[%emt 0:00:00]} 3. cxd5 {[%emt 0:00:00]} exd5 {[%emt 0:00:06]} 4. Bf4 {[%emt 0:00:00]} Nf6 {[%emt 0:01:11]} 5. Nc3 {[%emt 0:00:49]} Bd6 {[%emt 0:04:51]} 6. Bg5 {[%emt 0:04:50]} Be6 {[%emt 0:00:41]} 7. e4 {[%emt 0:01:09]} dxe4 {[%emt 0:01:39]} 8. Nxe4 {[%emt 0:00:34]} Be7 {[%emt 0:00:17]} 9. Nxf6+ {[%emt 0:06:17]} Bxf6 {[%emt 0:01:08]} 10. Bxf6 {[%emt 0:02:23]} Qxf6 {[%emt 0:00:32]} 11. Be2 {[%emt 0:08:52]} c6 {[%emt 0:00:43]} 12. Nf3 {[%emt 0:02:21]} O-O {[%emt 0:01:14]} 13. O-O {[%emt 0:04:54]} Rd8 {[%emt 0:01:48]} 14. Qd3 {[%emt 0:02:21]} c5 {[%emt 0:02:49]} 15. Rac1 {[%emt 0:04:18]} Bf5 {[%emt 0:00:46]} 16. Qb5 {[%emt 0:04:11]} cxd4 {[%emt 0:02:14]} 17. Rfd1 {[%emt 0:05:17]} b6 {[%emt 0:02:34]} 18. Nxd4 {[%emt 0:02:49]} Bd7 {[%emt 0:02:17]} 19. Qc4 {[%emt 0:05:48]} Re8 {[%emt 0:05:27]} 20. Bf3 {[%emt 0:07:16]} b5 {[%emt 0:05:25]} 21. Nxb5 {[%emt 0:04:12]} Be6 {[%emt 0:02:27]} 22. Qc3 {[%emt 0:07:41]} Qf5 {[%emt 0:03:09]} 23. Nd6 {[%emt 0:00:57]} Qg6 {[%emt 0:02:47]} 24. Nxe8 {[%emt 0:02:15]} Bd7 {[%emt 0:02:03]} 25. Bxa8 {[%emt 0:00:35]} Bxe8 {[%emt 0:00:08]} 26. Rd8 {[%emt 0:00:10]} 1-0